Cogmind - Beta 14 @@@ ROGUE MODE // 2024.08.11 @ 12:55:29 Player: Sionnis Result: Self-destructed Performance ------------- Evolutions (5) 2500 Regions Visited (16) 3200 Robots Destroyed (109) 545 Value Destroyed (3674) 3674 Prototype IDs (44) 880 Alien Tech Used (1) 200 Bonus (2043) 2043 TOTAL SCORE: 13042 Bonus ------- High Alert Combat Kills 868 Follower Combat Kills 213 Entered Garrisons 200 Used RIF Installer 500 Aligned with FarCom 300 Friendly Fire -38 Cogmind --------- Core Integrity 939/1000 Matter 267/300 Energy 154/160 System Corruption 3% Temperature Cool (15) Movement Flying (23) Location -5/Upper Caves Parts ------- > --- POWER (1) -------- Light Fission Core > --- PROPULSION (6) --- Cooled VTOL Module Cooled VTOL Module Cooled VTOL Module Cooled VTOL Module Cooled VTOL Module Cooled VTOL Module > --- UTILITY (9) ------ Advanced Weight Redist. System Advanced Signal Interpreter Improved Reaction Control System Improved Power Shielding Improved Medium Armor Plating Hacking Suite Makeshift Hacking Suite Advanced Hacking Suite System Shield > --- WEAPON (2) ------- Improved Datajack Ripper > --- INVENTORY (5) ---- Micro Fission Core Improved Transmission Jammer Hardened Light Armor Plating Tiamat Missile Launcher Peak State ------------ > --- POWER ------------ Light Fission Core > --- PROPULSION ------- Cooled VTOL Module Cooled VTOL Module Cooled VTOL Module Cooled VTOL Module Cooled VTOL Module Cooled VTOL Module > --- UTILITY ---------- Advanced Weight Redist. System Advanced Signal Interpreter Improved Reaction Control System Improved Power Shielding Improved Medium Armor Plating Hacking Suite Makeshift Hacking Suite Advanced Hacking Suite System Shield > --- WEAPON ----------- Improved Datajack Ripper > --- INVENTORY -------- Micro Fission Core Improved Transmission Jammer Hardened Light Armor Plating Tiamat Missile Launcher [Rating: 80] Favorites ----------- Power Ion Engine Engine Ion Engine Power Core Light Fission Core Propulsion Improved Treads Treads Improved Treads Flight Unit Cooled VTOL Module Utility High-capacity Storage Unit Device Improved Sensor Array Storage High-capacity Storage Unit Processor Core Analyzer Hackware Hacking Suite Protection Light Armor Plating Weapon Light Cannon Energy Gun Medium Laser Ballistic Gun Heavy Battle Rifle Ballistic Cannon Light Cannon Launcher Rocket Launcher Special Weapon Improved Plasma Cutter Slashing Weapon Katana Special Melee Weapon Improved Datajack Build | -11 -10 -10 -10 -9 -8 -8 -8 -7 -7 -7 -7 -7 -7 -5 -5 -5 ------- Run | Yrd Mat Min Exi Min Mat Gar Mat Fac Was Fac Sto Rec Scr Fac Upp Upp Slots Evolved 10 | . . . . . 4 . . 2 . . . . . 4 . . Power . | . . . . . . . . . . . . . . . . . Propulsion 3 | . . . . . 2 . . . . . . . . 1 . . Utility 7 | . . . . . 2 . . 2 . . . . . 3 . . Weapon . | . . . . . . . . . . . . . . . . . Parts Attached 141 | 6 15 4 4 5 12 27 18 14 . 9 9 . 2 13 2 1 Power 17 | 1 3 2 . . 3 2 2 2 . 1 . . 1 . . . Engine 15 | 1 3 2 . . 3 2 2 1 . 1 . . . . . . Core 2 | . . . . . . . . 1 . . . . 1 . . . Reactor . | . . . . . . . . . . . . . . . . . Propulsion 38 | 2 3 . 1 1 2 7 4 4 . 5 6 . . 2 1 . Treads 20 | 2 3 . 1 1 2 7 4 . . . . . . . . . Leg . | . . . . . . . . . . . . . . . . . Wheel . | . . . . . . . . . . . . . . . . . Hover . | . . . . . . . . . . . . . . . . . Flight 18 | . . . . . . . . 4 . 5 6 . . 2 1 . Utility 44 | 1 5 1 . 3 4 6 4 6 . 3 1 . 1 8 1 . Device 14 | . 1 . . 1 2 . 2 1 . 1 1 . . 4 1 . Storage 4 | 1 2 . . . . . . 1 . . . . . . . . Processor 4 | . 1 . . . 1 . . 1 . . . . . 1 . . Hackware 6 | . . . . . . . . 3 . 1 . . 1 1 . . Protection 16 | . 1 1 . 2 1 6 2 . . 1 . . . 2 . . Artifact . | . . . . . . . . . . . . . . . . . Weapon 42 | 2 4 1 3 1 3 12 8 2 . . 2 . . 3 . 1 Energy Gun 2 | 2 . . . . . . . . . . . . . . . . Energy Cannon . | . . . . . . . . . . . . . . . . . Ballistic Gun 11 | . . 1 1 . 2 3 4 . . . . . . . . . Ballistic Cannon 9 | . 3 . . 1 1 3 1 . . . . . . . . . Launcher 7 | . 1 . 1 . . . 3 . . . 1 . . 1 . . Special Weapon 1 | . . . . . . . . . . . 1 . . . . . Impact Weapon . | . . . . . . . . . . . . . . . . . Slashing Weapon 8 | . . . . . . 6 . 1 . . . . . . . 1 Piercing Weapon . | . . . . . . . . . . . . . . . . . Special Melee Weapon 4 | . . . 1 . . . . 1 . . . . . 2 . . Unidentified Prototypes 10 | . . . . 1 2 . 1 . . 2 2 . . 1 1 . Parts Lost 15 | . 1 . . . 1 6 4 . . 1 1 . . 1 . . Power 2 | . 1 . . . . 1 . . . . . . . . . . Propulsion 3 | . . . . . . 2 1 . . . . . . . . . Utility 7 | . . . . . 1 2 2 . . 1 . . . 1 . . Weapon 3 | . . . . . . 1 1 . . . 1 . . . . . Highest Loss Streak 3 | . 1 . . . 1 3 3 . . 1 1 . . 1 . . To Critical Strikes . | . . . . . . . . . . . . . . . . . Average Slot Usage (%) 98 | . 98 100 100 100 99 99 97 90 100 99 98 92 92 91 99 100 Engine 10 | . 13 14 14 14 8 8 8 1 . 4 7 7 2 . . . Treads 25 | . 27 28 28 28 36 35 34 4 . . . . . . . . Flight 4 | . . . . . . . . 23 30 29 30 30 30 29 31 33 Device 2 | . . . . . 7 . 12 8 7 7 6 7 7 12 11 11 Storage 10 | . 14 14 14 14 9 9 9 3 . . . . . . . . Processor 4 | . 4 . . . 8 9 8 6 7 7 7 7 7 5 5 5 Hackware 3 | . . . . . . . . 13 23 23 23 23 23 17 22 22 Protection 11 | . 8 14 14 13 10 17 5 7 7 5 7 7 7 8 11 11 Energy Gun 2 | . 13 . . . . . . . . . . . . . . . Ballistic Gun 8 | . . 12 13 14 12 12 17 4 . . . . . . . . Ballistic Cannon 8 | . 14 15 10 14 5 2 . . . . . . . . . . Slashing Weapon 1 | . . . . . . 3 . 5 7 7 7 7 7 5 5 5 Peak Build Rating 80 | 6 11 14 16 22 37 38 47 48 45 57 52 47 48 75 79 80 Average Rating 25 | 4 9 13 14 15 33 36 42 40 45 50 48 47 47 65 76 79 On Entrance 35 | . 6 11 14 15 21 36 37 37 45 45 49 47 47 48 74 79 Naked Turns . | . . . . . . . . . . . . . . . . . Heaviest Build 93 | 12 93 55 56 62 70 69 68 14 14 18 21 17 17 21 21 22 Greatest Support 97 | 40 46 46 46 51 97 97 96 21 21 27 27 20 20 35 38 30 Greatest Overweight (x) 2 | 2 2 1 1 1 1 . . . . . . . . . . . Average Overweight (x) . | . . 1 1 1 . . . . . . . . . . . . Largest Inventory Capacity 25 | 8 25 20 20 20 20 20 20 20 5 5 5 5 5 5 5 5 Average Capacity 16 | 7 15 20 20 20 20 20 20 9 5 5 5 5 5 5 5 5 Most Carried 20 | 2 19 19 20 20 20 20 20 19 5 5 5 5 5 5 5 4 Average Carried 14 | 1 11 18 19 17 17 18 19 7 5 4 4 5 4 4 4 4 Final Capacity 20 | 8 20 20 20 20 20 20 20 5 5 5 5 5 5 5 5 5 Final Carried 20 | 2 18 19 17 20 19 18 20 5 5 3 5 5 5 5 4 4 Class Distribution -------------------- 85% | Mutant 13% | Hacker-Sprinter Dominant Class ---------------- Mutant | -10/Materials Mutant | -10/Mines Mutant | -10/Exiles Mutant | -9/Mines Mutant | -8/Materials Mutant | -8/Garrison Mutant | -8/Materials Mutant | -7/Factory Hacker-Sprinter | -7/Waste Hacker-Sprinter | -7/Factory Hacker-Sprinter | -7/Storage Hacker-Sprinter | -7/Recycling Hacker-Sprinter | -7/Scraptown Hacker-Sprinter | -5/Factory Hacker-Sprinter | -5/Upper Caves Hacker-Sprinter | -5/Upper Caves Resources | -11 -10 -10 -10 -9 -8 -8 -8 -7 -7 -7 -7 -7 -7 -5 -5 -5 ----------- Run | Yrd Mat Min Exi Min Mat Gar Mat Fac Was Fac Sto Rec Scr Fac Upp Upp Matter Collected 3418 | 238 233 153 20 81 415 1105 599 . . 116 265 . 30 120 . 43 Remotely 531 | . . . . . . . 531 . . . . . . . . . Salvage Created 4239 | . 632 174 . . 570 1402 808 . . 116 139 . . 398 . . Parts 221 | . 34 6 . . 26 81 47 . . 6 11 . . 10 . . Haulers Intercepted 11 | . 2 . . . 3 . 1 . . 1 1 . . 3 . . Recyclers Shooed 1 | . . . . . 1 . . . . . . . . . . . Parts Field Recycled . | . . . . . . . . . . . . . . . . . Retrieved Matter . | . . . . . . . . . . . . . . . . . Parts Self-Destructed . | . . . . . . . . . . . . . . . . . Prevented . | . . . . . . . . . . . . . . . . . Kills | -11 -10 -10 -10 -9 -8 -8 -8 -7 -7 -7 -7 -7 -7 -5 -5 -5 ------- Run | Yrd Mat Min Exi Min Mat Gar Mat Fac Was Fac Sto Rec Scr Fac Upp Upp Combat Hostiles Destroyed 88 | . 13 5 . . 12 35 21 . . . 1 . . 1 . . Melee 2 | . . . . . . . . . . . 1 . . 1 . . Guns 57 | . 8 3 . . 9 29 8 . . . . . . . . . Cannons 14 | . 3 2 . . 3 6 . . . . . . . . . . AOE 15 | . 2 . . . . . 13 . . . . . . . . . Classes Destroyed 16 | . 3 1 . . 4 3 3 . . 1 . . . 1 . . Worker 2 | . . . . . 2 . . . . . . . . . . . Builder 1 | . . . . . . . 1 . . . . . . . . . Hauler 11 | . 2 . . . 3 . 1 . . 1 1 . . 3 . . Operator 5 | . 1 . . . . . 1 . . 1 1 . . 1 . . Watcher 3 | . . . . . . . . . . 1 1 . . 1 . . Swarmer 15 | . . . . . 5 7 3 . . . . . . . . . Grunt 46 | . 13 4 . . 2 15 11 . . . 1 . . . . . Brawler 3 | . . . . . . 2 1 . . . . . . . . . Duelist 3 | . . . . . . 1 2 . . . . . . . . . Protector 1 | . . . . . . . 1 . . . . . . . . . Sentry 14 | . . . . . 4 8 2 . . . . . . . . . Hunter 2 | . . . . . 1 1 . . . . . . . . . . Programmer 1 | . . . . . . . . . . . . . . 1 . . Heavy 1 | . . . . . . . 1 . . . . . . . . . Behemoth 1 | . . . . . . 1 . . . . . . . . . . Assembled 1 | . . 1 . . . . . . . . . . . . . . Best Kill Streak 8 | . 4 2 . . 6 8 8 . . 1 2 . . 2 . . Combat Bots Only 8 | . 4 2 . . 5 8 8 . . . 1 . . 1 . . Max Kills in Single Turn 4 | . 2 1 . . 2 1 4 . . 1 1 . . 1 . . Gunslinging . | . . . . . . . . . . . . . . . . . Exploded 4 | . 2 . . . . . 4 . . . . . . . . . Melee 1 | . . . . . . . . . . . 1 . . 1 . . Uniques/NPCs Destroyed . | . . . . . . . . . . . . . . . . . Combat | -11 -10 -10 -10 -9 -8 -8 -8 -7 -7 -7 -7 -7 -7 -5 -5 -5 -------- Run | Yrd Mat Min Exi Min Mat Gar Mat Fac Was Fac Sto Rec Scr Fac Upp Upp Hostile Shots Fired 506 | . 61 13 22 . 46 170 68 . . 15 79 . . 28 4 . Missed 178 | . 16 3 10 . 16 36 19 . . 9 49 . . 16 4 . Damage Taken 5102 | . 535 143 169 . 334 2328 942 . . 143 271 . . 237 . . Core 532 | . 101 27 10 . 29 129 58 . . 56 61 . . 61 . . Absorbed by Shields 64 | . . . . . 64 . . . . . . . . . . . Redirected to Shielding 26 | . . . . . . . . . . . . . . 26 . . Regen/Repaired (Parts) 256 | . 85 . . . . . . . . . . . 171 . . . Core Remaining (%) 71 | 100 . . . 44 . . 60 . . . . . 83 . . . Volleys Fired 267 | . 44 23 1 . 40 107 52 . . . . . . . . . Largest 2 | . 2 2 1 . 2 2 2 . . . . . . . . . Hottest 90 | . 90 68 33 . 72 64 56 . . . . . . . . . Shots Fired 506 | . 87 34 1 . 79 215 90 . . . . . . . . . Gun 410 | . 73 23 . . 63 174 77 . . . . . . . . . Cannon 81 | . 13 11 . . 16 41 . . . . . . . . . . Launcher 15 | . 1 . 1 . . . 13 . . . . . . . . . Special . | . . . . . . . . . . . . . . . . . Kinetic 418 | . 13 34 . . 79 215 77 . . . . . . . . . Thermal 43 | . 43 . . . . . . . . . . . . . . . Explosive 15 | . 1 . 1 . . . 13 . . . . . . . . . Electromagnetic 30 | . 30 . . . . . . . . . . . . . . . Robot Hit Streak 23 | . 15 7 . . 8 18 23 . . . . . . . . . Robot Miss Streak 6 | . 3 2 . . 6 5 4 . . . . . . . . . Penetration Max . | . . . . . . . . . . . . . . . . . Secondary Targets 8 | . 3 . . . 1 2 2 . . . . . . . . . Max Gunslinging Chain 1 | . 1 . . . 1 1 1 . . . . . . . . . Shots Hit Robots 377 | . 53 13 1 . 47 146 69 . . 17 5 . . 26 . . Core Hits 181 | . 24 6 . . 23 66 50 . . 2 4 . . 6 . . Critical Kills . | . . . . . . . . . . . . . . . . . Critical Parts Destroyed 1 | . . . . . . . 1 . . . . . . . . . Critical Strikes 13 | . 3 . . . 1 2 1 . . . . . . 6 . . Burn 3 | . 3 . . . . . . . . . . . . . . . Destroy 1 | . . . . . . . 1 . . . . . . . . . Blast 3 | . . . . . 1 2 . . . . . . . . . . Sever 6 | . . . . . . . . . . . . . . 6 . . Melee Attacks 120 | . . . 1 . . 28 . . . 32 18 . . 39 1 1 Impact . | . . . . . . . . . . . . . . . . . Slashing 111 | . . . . . . 28 . . . 28 17 . . 36 1 1 Piercing . | . . . . . . . . . . . . . . . . . Sneak Attacks 20 | . . . 1 . . . . . . 10 2 . . 7 . . Combat Hostiles 1 | . . . . . . . . . . . . . . 1 . . Follow-up Attacks . | . . . . . . . . . . . . . . . . . Damage Inflicted 9343 | . 895 253 . . 953 2821 2533 . . 680 166 . . 1042 . . Guns 4872 | . 658 143 . . 762 2132 1177 . . . . . . . . . Cannons 1087 | . 132 110 . . 191 654 . . . . . . . . . . Explosions 1449 | . 104 . . . . . 1345 . . . . . . . . . Melee 1923 | . . . . . . 35 . . . 680 166 . . 1042 . . Ramming 12 | . 1 . . . . . 11 . . . . . . . . . Kinetic 5301 | . 132 253 . . 953 2786 1177 . . . . . . . . . Thermal 437 | . 437 . . . . . . . . . . . . . . . Explosive 1345 | . . . . . . . 1345 . . . . . . . . . Electromagnetic 325 | . 325 . . . . . . . . . . . . . . . Impact . | . . . . . . . . . . . . . . . . . Slashing 1923 | . . . . . . 35 . . . 680 166 . . 1042 . . Piercing . | . . . . . . . . . . . . . . . . . Highest Corruption 9 | . . . . . 1 1 2 . 9 9 5 5 . 3 3 3 Average Corruption 2 | . . . . . 1 1 1 . 9 7 5 5 . 2 3 3 Corruption Purged 8 | . . . . . . . 3 . . 5 . . . . . . Corruption Blocked . | . . . . . . . . . . . . . . . . . Effects 53 | . . . . . 4 17 . . 1 13 7 . . 4 1 6 Message Errors 13 | . . . . . . 6 . . . 4 1 . . 1 1 . Matter Fused 10 | . . . . . . . . . 1 3 3 . . . . 3 Heat Flow Errors 7 | . . . . . . 2 . . . 3 1 . . . . 1 Energy Discharges 6 | . . . . . 1 1 . . . 3 . . . . . 1 Parts Rejected 2 | . . . . . . 1 . . . . . . . 1 . . Data Loss (minor) 7 | . . . . . 1 2 . . . . 2 . . 1 . 1 Data Loss (major) 3 | . . . . . 1 1 . . . . . . . 1 . . Misfires 3 | . . . . . . 3 . . . . . . . . . . Weapon Failures 2 | . . . . . 1 1 . . . . . . . . . . Overload Shots . | . . . . . . . . . . . . . . . . . Overflow Damage 280 | . 3 . . . . . 6 . . 158 . . . 113 . . Projectiles . | . . . . . . . . . . . . . . . . . Explosions 9 | . 3 . . . . . 6 . . . . . . . . . Melee 271 | . . . . . . . . . . 158 . . . 113 . . Knockbacks 4 | . . . . . 1 3 . . . . . . . . . . Impact . | . . . . . . . . . . . . . . . . . Kinetic 4 | . . . . . 1 3 . . . . . . . . . . Secondary . | . . . . . . . . . . . . . . . . . Self-Inflicted Damage 113 | . 39 . . . . . 74 . . . . . . . . . Shots 4 | . 1 . . . . . 3 . . . . . . . . . Rammed 2 | . 1 . . . . . 1 . . . . . . . . . Targets Rammed 2 | . 1 . . . . . 1 . . . . . . . . . Kicked . | . . . . . . . . . . . . . . . . . Crushed . | . . . . . . . . . . . . . . . . . Highest Temperature 500 | . 408 135 . . 253 500 87 . . 266 213 . . . 35 272 Average Temperature 96 | . 116 61 . . 40 116 29 . . 116 94 . . . 35 110 Received Heat Transfer 1770 | . 270 63 . . 117 933 252 . . 18 108 . . 9 . . Effects 11 | . 1 . . . . 5 . . . 4 1 . . . . . Shutdowns 1 | . . . . . . 1 . . . . . . . . . . Energy Bleed 4 | . 1 . . . . 1 . . . 1 1 . . . . . Interference 4 | . . . . . . 1 . . . 3 . . . . . . Short Circuit 2 | . . . . . . 2 . . . . . . . . . . Siege Activations . | . . . . . . . . . . . . . . . . . Robots Corrupted . | . . . . . . . . . . . . . . . . . Combat Hostiles . | . . . . . . . . . . . . . . . . . Parts Fried . | . . . . . . . . . . . . . . . . . Impact Corruptions . | . . . . . . . . . . . . . . . . . Robots Melted . | . . . . . . . . . . . . . . . . . Combat Hostiles . | . . . . . . . . . . . . . . . . . Parts Melted 5 | . 2 . . . 1 . . . . . . . . 2 . . Heat Transferred 1297 | . 1297 . . . . . . . . . . . . . . . Parts Sabotaged . | . . . . . . . . . . . . . . . . . Parts Stolen . | . . . . . . . . . . . . . . . . . Parts Stripped . | . . . . . . . . . . . . . . . . . Power Chain Reactions 1 | . 1 . . . . . . . . . . . . . . . Alert | -11 -10 -10 -10 -9 -8 -8 -8 -7 -7 -7 -7 -7 -7 -5 -5 -5 ------- Run | Yrd Mat Min Exi Min Mat Gar Mat Fac Was Fac Sto Rec Scr Fac Upp Upp Peak Influence 1397 | . 229 52 . . 299 1397 1094 497 173 320 567 220 . 222 . . Initial 680 | . . . . . . 183 680 497 173 121 36 220 . . . . Average 273 | . 44 8 . . 168 829 958 497 173 205 284 220 . 74 . . Maximum Alert Level 4 | . 1 . . . 1 4 3 2 . 1 2 1 . 1 . . Low Security (%) 65 | 100 97 100 . 100 41 5 . . 100 50 32 . . 93 . . Level 1 10 | . 2 . . . 58 9 . . . 49 42 100 . 6 . . Level 2 6 | . . . . . . 19 11 100 . . 24 . . . . . Level 3 12 | . . . . . . 37 88 . . . . . . . . . Level 4 6 | . . . . . . 28 . . . . . . . . . . Level 5 . | . . . . . . . . . . . . . . . . . High Security . | . . . . . . . . . . . . . . . . . Max Security . | . . . . . . . . . . . . . . . . . Squads Dispatched 34 | . 6 . . 1 5 . 8 1 . 6 5 . . 2 . . Investigation 14 | . 5 . . 1 2 . 1 . . 1 2 . . 2 . . Extermination . | . . . . . . . . . . . . . . . . . Reinforcement 8 | . 1 . . . . . 3 . . 3 1 . . . . . Assault 1 | . . . . . . . 1 . . . . . . . . . Garrison 11 | . . . . . 3 . 3 1 . 2 2 . . . . . Intercept . | . . . . . . . . . . . . . . . . . Searches Triggered . | . . . . . . . . . . . . . . . . . Construction Impeded . | . . . . . . . . . . . . . . . . . Haulers Reinforced 2 | . . . . . . . . . . 2 . . . . . . Active Scanning Responses . | . . . . . . . . . . . . . . . . . Cargo Convoy Interrupts . | . . . . . . . . . . . . . . . . . Stealth | -11 -10 -10 -10 -9 -8 -8 -8 -7 -7 -7 -7 -7 -7 -5 -5 -5 --------- Run | Yrd Mat Min Exi Min Mat Gar Mat Fac Was Fac Sto Rec Scr Fac Upp Upp Distress Signals 9 | . 2 . . . . . 4 . . 1 1 . . 1 . . Communications Jammed . | . . . . . . . . . . . . . . . . . Distress Signals . | . . . . . . . . . . . . . . . . . Times Spotted 179 | . 13 6 5 . 15 36 26 2 6 16 32 . . 16 6 . Peak Tracking Total 15 | . 4 2 9 . 5 4 9 2 6 13 15 . . 7 12 . Tactical Retreats 12 | . . . . . 1 3 1 . . 2 3 . . 2 . . Traps | -11 -10 -10 -10 -9 -8 -8 -8 -7 -7 -7 -7 -7 -7 -5 -5 -5 ------- Run | Yrd Mat Min Exi Min Mat Gar Mat Fac Was Fac Sto Rec Scr Fac Upp Upp Traps Triggered 14 | . . . . . 1 8 1 1 . 3 . . . . . . Indirectly . | . . . . . . . . . . . . . . . . . Trap Hack Attempts . | . . . . . . . . . . . . . . . . . Triggered . | . . . . . . . . . . . . . . . . . Disarmed . | . . . . . . . . . . . . . . . . . Reprogrammed . | . . . . . . . . . . . . . . . . . Reused . | . . . . . . . . . . . . . . . . . Traps Extracted . | . . . . . . . . . . . . . . . . . Installed . | . . . . . . . . . . . . . . . . . Triggered 2 | . . . . . . . . . . . . . . . 1 1 Machines | -11 -10 -10 -10 -9 -8 -8 -8 -7 -7 -7 -7 -7 -7 -5 -5 -5 ---------- Run | Yrd Mat Min Exi Min Mat Gar Mat Fac Was Fac Sto Rec Scr Fac Upp Upp Machines Disabled 12 | . 3 . 1 . 1 1 . . . . 5 . . 1 . . Max in Single Turn 1 | . 1 . 1 . 1 1 . . . . 1 . . 1 . . Garrison Access 2 | . . . . . . . . . . 1 . . . 1 . . Machines Repaired . | . . . . . . . . . . . . . . . . . Machines Dismantled . | . . . . . . . . . . . . . . . . . Machines Sabotaged . | . . . . . . . . . . . . . . . . . Overloaded Fab Kills . | . . . . . . . . . . . . . . . . . Hacking | -11 -10 -10 -10 -9 -8 -8 -8 -7 -7 -7 -7 -7 -7 -5 -5 -5 --------- Run | Yrd Mat Min Exi Min Mat Gar Mat Fac Was Fac Sto Rec Scr Fac Upp Upp Machines Accessed 40 | . 9 . 1 1 4 4 1 . . 6 6 . . 8 . . Terminals 25 | . 6 . . . 1 4 1 . . 3 6 . . 4 . . Fabricators 2 | . . . . . . . . . . 1 . . . 1 . . Repair Stations 2 | . 1 . . . . . . . . . . . . 1 . . Recycling Units 4 | . 2 . . . 1 . . . . . . . . 1 . . Scanalyzers 2 | . . . . . 1 . . . . 1 . . . . . . Garrison Access 3 | . . . . . 1 . . . . 1 . . . 1 . . Total Hacks 104 | . 29 . 1 1 9 8 2 . . 19 15 . . 20 . . Successful 57 | . 17 . 1 1 3 1 . . . 14 8 . . 12 . . Failed 46 | . 11 . . . 6 7 2 . . 5 7 . . 8 . . Catastrophic 11 | . . . . . 2 3 2 . . 2 . . . 2 . . Database Lockouts 1 | . 1 . . . . . . . . . . . . . . . Manual 56 | . 26 . 1 . 3 . . . . 10 4 . . 12 . . Terminals 77 | . 23 . . . 3 8 2 . . 13 15 . . 13 . . Fabricators 6 | . . . . . . . . . . 3 . . . 3 . . Repair Stations 4 | . 2 . . . . . . . . . . . . 2 . . Recycling Units 7 | . 4 . . . 2 . . . . . . . . 1 . . Scanalyzers 5 | . . . . . 3 . . . . 2 . . . . . . Garrison Access 3 | . . . . . 1 . . . . 1 . . . 1 . . Terminal Hacks 24 | . 4 . 1 1 . 1 . . . 6 7 . . 4 . . Part Schematic 2 | . . . . . . . . . . . . . . 2 . . Robot Analysis 2 | . 2 . . . . . . . . . . . . . . . Prototype ID Bank 2 | . 1 . . . . . . . . . 1 . . . . . Open Door 5 | . . . . 1 . . . . . . 4 . . . . . Level Access Points 1 | . . . . . . . . . . . 1 . . . . . Branch Access Points 2 | . . . . . . . . . . 1 . . . 1 . . Emergency Access Points 2 | . . . . . . 1 . . . 1 . . . . . . Terminal Index 2 | . 1 . . . . . . . . . . . . 1 . . Unreport Threat 2 | . . . . . . . . . . 2 . . . . . . Locate Traps 1 | . . . . . . . . . . 1 . . . . . . Hauler Manifests 2 | . . . . . . . . . . 1 1 . . . . . Derelict Proto ID Bank 1 | . . . 1 . . . . . . . . . . . . . Fabricator Hacks 4 | . . . . . . . . . . 2 . . . 2 . . Load Schematic 2 | . . . . . . . . . . 1 . . . 1 . . Build 2 | . . . . . . . . . . 1 . . . 1 . . Repair Station Hacks 2 | . 2 . . . . . . . . . . . . . . . Scan Component 1 | . 1 . . . . . . . . . . . . . . . Repair 1 | . 1 . . . . . . . . . . . . . . . Recycling Unit Hacks 3 | . 1 . . . 1 . . . . . . . . 1 . . Retrieve Components 3 | . 1 . . . 1 . . . . . . . . 1 . . Scanalyzer 3 | . . . . . 1 . . . . 2 . . . . . . Insert Component 2 | . . . . . 1 . . . . 1 . . . . . . Analyze 1 | . . . . . . . . . . 1 . . . . . . Garrison Access Hacks 3 | . . . . . 1 . . . . 1 . . . 1 . . Unlock Access 1 | . . . . . 1 . . . . . . . . . . . Seal Access 2 | . . . . . . . . . . 1 . . . 1 . . Unauthorized Hacks 18 | . 10 . . . . . . . . 3 1 . . 4 . . Terminals 14 | . 8 . . . . . . . . 2 1 . . 3 . . Botnet 6 | . 2 . . . . . . . . 1 1 . . 2 . . Operators 3 | . 1 . . . . . . . . 1 . . . 1 . . Skim 5 | . 5 . . . . . . . . . . . . . . . Fabricators 2 | . . . . . . . . . . 1 . . . 1 . . Prioritize 2 | . . . . . . . . . . 1 . . . 1 . . Repair Stations . | . . . . . . . . . . . . . . . . . Recycling Units 2 | . 2 . . . . . . . . . . . . . . . Tunnel 2 | . 2 . . . . . . . . . . . . . . . Scanalyzers . | . . . . . . . . . . . . . . . . . Garrison Access . | . . . . . . . . . . . . . . . . . Data Cores Recovered 1 | . . . . . . . . . . . 1 . . . . . Used 1 | . . . . . . . . . . . 1 . . . . . Hacking Detections 23 | . 5 . . . 2 3 1 . . 4 2 . . 6 . . Full Trace Events 11 | . 1 . . . 2 2 1 . . 1 2 . . 2 . . Feedback Events 1 | . . . . . 1 . . . . . . . . . . . Corruption 1 | . . . . . 1 . . . . . . . . . . . Feedback Blocked . | . . . . . . . . . . . . . . . . . Robot Schematics Acquired . | . . . . . . . . . . . . . . . . . Robots Built . | . . . . . . . . . . . . . . . . . Authchips . | . . . . . . . . . . . . . . . . . Time . | . . . . . . . . . . . . . . . . . Total Robot Build Rating . | . . . . . . . . . . . . . . . . . Part Schematics Acquired 3 | . . . . . . . . . . 1 . . . 2 . . Parts Built 2 | . . . . . . . . . . 1 . . . 1 . . Authchips . | . . . . . . . . . . . . . . . . . Time 86 | . . . . . . . . . . 33 . . . 53 . . Total Part Build Rating 10 | . . . . . . . . . . 4 . . . 6 . . Parts Repaired 1 | . 1 . . . . . . . . . . . . . . . Time 32 | . 32 . . . . . . . . . . . . . . . Parts Recycled . | . . . . . . . . . . . . . . . . . Recycled Matter . | . . . . . . . . . . . . . . . . . Retrieved Matter . | . . . . . . . . . . . . . . . . . Retrieved Components 14 | . 3 . . . 9 . . . . . . . . 2 . . Parts Scanalyzed 2 | . . . . . 1 . . . . 1 . . . . . . Part Schematics Acquired 1 | . . . . . . . . . . 1 . . . . . . Parts Damaged . | . . . . . . . . . . . . . . . . . Bothacking | -11 -10 -10 -10 -9 -8 -8 -8 -7 -7 -7 -7 -7 -7 -5 -5 -5 ------------ Run | Yrd Mat Min Exi Min Mat Gar Mat Fac Was Fac Sto Rec Scr Fac Upp Upp Used RIF Installer 1 | . . . . . . 1 . . . . . . . . . . Robots Hacked 7 | . . . 1 . . . . . . 2 1 . . 3 . . Non-combat 6 | . . . . . . . . . . 2 1 . . 3 . . Combat 1 | . . . 1 . . . . . . . . . . . . . Robot Hacks Applied 9 | . . . 1 . . . . . . 4 1 . . 3 . . parse_system 1 | . . . 1 . . . . . . . . . . . . . no_distress 6 | . . . . . . . . . . 2 1 . . 3 . . find_fabricator 1 | . . . . . . . . . . 1 . . . . . . find_dsf 1 | . . . . . . . . . . 1 . . . . . . Relay Couplers Released . | . . . . . . . . . . . . . . . . . Fabnet Peak Effective % . | . . . . . . . . . . . . . . . . . Robots Rewired 3 | . . . . . . 3 . . . . . . . . . . Allies Hacked . | . . . . . . . . . . . . . . . . . Hacks Repelled . | . . . . . . . . . . . . . . . . . Allies | -11 -10 -10 -10 -9 -8 -8 -8 -7 -7 -7 -7 -7 -7 -5 -5 -5 -------- Run | Yrd Mat Min Exi Min Mat Gar Mat Fac Was Fac Sto Rec Scr Fac Upp Upp Total Allies 13 | . . . . . . 3 . . . . 10 . . . . . Largest Group 10 | . . . . . . 3 . . . . 10 . . . . . Highest-Rated Group 173 | . . . . . . 93 . . . . 173 . . . . . Highest-Rated Ally 31 | . . . . . . 31 . . . . 29 . . . . . Total Orders . | . . . . . . . . . . . . . . . . . Ally Attacks 105 | . . . . . . 19 . . . . 86 . . . . . Total Damage 1317 | . . . . . . 299 . . . . 1018 . . . . . Kills 10 | . . . . . . 2 . . . . 8 . . . . . Allies Corrupted 2 | . . . . . . . . . . . 2 . . . . . Allies Melted . | . . . . . . . . . . . . . . . . . Intel | -11 -10 -10 -10 -9 -8 -8 -8 -7 -7 -7 -7 -7 -7 -5 -5 -5 ------- Run | Yrd Mat Min Exi Min Mat Gar Mat Fac Was Fac Sto Rec Scr Fac Upp Upp Robot Analysis Total 2 | . 2 . . . . . . . . . . . . . . . Derelict Logs Recovered 6 | . . 2 . 2 . . . . . . . . . . . 2 Drone Launches . | . . . . . . . . . . . . . . . . . Drone Recoveries . | . . . . . . . . . . . . . . . . . Exploration | -11 -10 -10 -10 -9 -8 -8 -8 -7 -7 -7 -7 -7 -7 -5 -5 -5 ------------- Run | Yrd Mat Min Exi Min Mat Gar Mat Fac Was Fac Sto Rec Scr Fac Upp Upp Turns Passed 10966 | 84 2339 1771 1213 957 551 1962 490 66 42 399 294 25 217 342 68 146 Spaces Moved 7791 | 49 914 698 500 392 254 926 198 115 108 703 644 90 814 781 247 358 Core 6 | 6 . . . . . . . . . . . . . . . . Treads 3925 | 43 914 698 500 392 254 926 198 . . . . . . . . . Legs . | . . . . . . . . . . . . . . . . . Wheels . | . . . . . . . . . . . . . . . . . Hover . | . . . . . . . . . . . . . . . . . Flight 3860 | . . . . . . . . 115 108 703 644 90 814 781 247 358 Fastest Speed 5 | 50 160 240 240 240 160 160 160 32 32 22 17 26 26 5 6 20 Average Speed 114 | 151 199 240 240 240 160 160 161 32 32 30 26 26 26 22 21 22 Slowest Speed 320 | 160 320 240 240 240 240 160 163 35 32 34 29 26 26 23 23 23 Overloaded Moves 26 | . . . . . . . . . . 10 8 . . 5 3 . Propulsion Burnouts . | . . . . . . . . . . . . . . . . . Robots Hopped 33 | . . . . . . . . 1 . 8 16 . . 8 . . Cave-ins Triggered . | . . . . . . . . . . . . . . . . . Exploration Rate (%) 52 | 4 97 99 70 75 23 96 25 4 93 20 82 27 59 16 44 64 Regions Visited 16 Branch Regions 8 Pre-discovered Areas 6 | . 4 . . 2 . . . . . . . . . . . . Known Exits Taken 8 | . . . . . 1 . 1 . . 1 1 1 1 1 1 . Unknown Exits Taken 5 | 1 1 1 1 1 . . . . . . . . . . . . Scrap Searched 6 | . . 1 . 1 . . . . . . . . 3 . . 1 Spaces Dug 29 | . 5 . . . . 1 . . . 13 6 . . 2 1 1 Terrain Destroyed 130 | . 7 3 4 . 1 1 91 . . 13 6 . . 2 1 1 Melee 24 | . . . . . . 1 . . . 13 6 . . 2 1 1 Projectile 4 | . . 3 . . 1 . . . . . . . . . . . AOE 102 | . 7 . 4 . . . 91 . . . . . . . . . Terrain Rammed . | . . . . . . . . . . . . . . . . . Walls Destroyed . | . . . . . . . . . . . . . . . . . Machines Disabled . | . . . . . . . . . . . . . . . . . Actions | -11 -10 -10 -10 -9 -8 -8 -8 -7 -7 -7 -7 -7 -7 -5 -5 -5 --------- Run | Yrd Mat Min Exi Min Mat Gar Mat Fac Was Fac Sto Rec Scr Fac Upp Upp Total 9221 | 56 1346 760 513 408 338 1219 282 148 114 837 732 90 818 879 258 423 Wait 695 | . 327 31 . 5 18 63 1 2 7 82 44 1 . 45 7 62 Move 7714 | 48 913 697 499 391 253 925 197 113 107 687 612 89 813 766 246 358 Hop 29 | . . . . . . . . 1 . 7 15 . . 6 . . Pick Up 83 | 2 27 2 3 4 6 12 7 2 . 2 13 . 1 2 . . Fast Attach 60 | 6 7 2 . 2 7 6 5 2 . 3 5 . 1 11 2 1 Attach 32 | . 1 . . . 5 7 4 9 . 2 2 . . 1 1 . Detach 2 | . . . . . . . . . . . . . . 2 . . Swap 50 | . 7 2 4 3 . 14 9 3 . 4 2 . 1 1 . . Drop 107 | . 19 3 5 3 9 14 6 16 . 5 17 . 2 6 1 1 Fire 267 | . 44 23 1 . 40 107 52 . . . . . . . . . Melee 120 | . . . 1 . . 28 . . . 32 18 . . 39 1 1 Ram . | . . . . . . . . . . . . . . . . . Kick . | . . . . . . . . . . . . . . . . . Crush 2 | . 1 . . . . . 1 . . . . . . . . . Escape Stasis 13 | . . . . . . . . . . 13 . . . . . . Rewire 47 | . . . . . . 43 . . . . 4 . . . . . Trap . | . . . . . . . . . . . . . . . . . Miscellaneous . | . . . . . . . . . . . . . . . . . Route ------- -11/Scrapyard -10/Materials (discovered 6 exits: [*Mat x3] / [*Min x2] / Sub) -10/Mines (discovered 4 exits: [*Mat x2] / *Exi / *Sub) -10/Exiles (discovered 2 exits: *Min x2) -9/Mines -8/Materials (discovered 3 exits: Fac x2 / Gar) -8/Garrison (discovered 4 exits: *Mat x4) -8/Materials -7/Factory -7/Waste -7/Factory (discovered 4 exits: *Sto x2 / Low x2) -7/Storage (discovered 2 exits: *Fac / *Rec) -7/Recycling -7/Scraptown -5/Factory (discovered 5 exits: *Fac / *Upp x2 / Ext x2) -5/Upper Caves -5/Upper Caves (discovered 2 exits: *Fac / *Zhi) History --------- Turn | Location | Event 11 | -11/Scrapyard | Discovered new exit (range 13) 85 | -11/Scrapyard | Entered Materials 298 | -10/Materials | Met 8R-AWN 306 | -10/Materials | Build established: Mutant 343 | -10/Materials | Central database locked down 369 | -10/Materials | Discovered new exit (range 6) 778 | -10/Materials | Discovered new exit (range 12) 1023 | -10/Materials | Discovered new exit (range 14) 1522 | -10/Materials | Discovered new exit (range 16) 1789 | -10/Materials | Discovered new exit (range 6) 2047 | -10/Materials | Repaired Imp. Treads 2060 | -10/Materials | Learned 4 Subcaves zone layouts 2123 | -10/Materials | Learned Recycling recycling unit intel 2174 | -10/Materials | Learned 4 Subcaves zone layouts 2216 | -10/Materials | Learned Storage trap positions 2267 | -10/Materials | Identified exit to Subcaves 2267 | -10/Materials | Learned location of 1 exit from Materials 2329 | -10/Materials | Learned location of 2 exits from Subcaves 2403 | -10/Materials | Learned Storage security intel 2424 | -10/Materials | Entered Mines 2427 | -10/Mines | Followed 8R-AWN into the Mines 2552 | -10/Mines | A weapon hastily lodged in a ceiling crevice suddenly fell to the ground 2709 | -10/Mines | Discovered new exit (range 4) 2992 | -10/Mines | Received a Rocket Launcher from a helpful Derelict 3076 | -10/Mines | Discovered new exit (range 5) 3542 | -10/Mines | Excavation squad dispatched 3542 | -10/Mines | A large section of the Mines collapsed 3613 | -10/Mines | Core integrity fell below 50% 3684 | -10/Mines | Discovered new exit (range 15) 3962 | -10/Mines | Discovered exit to Subcaves (range 6) 4195 | -10/Mines | Entered Exiles 4227 | -10/Exiles | Discovered new exit (range 15) 4263 | -10/Exiles | Welcomed by 8R-AWN 4315 | -10/Exiles | Learned about 8R-AWN's background 4344 | -10/Exiles | Met EX-HEX 4411 | -10/Exiles | Met EX-BIN 4440 | -10/Exiles | Aligned with FarCom system 4442 | -10/Exiles | Given EX-Vault access code 4498 | -10/Exiles | Opened EX-Vault 4560 | -10/Exiles | Warned to stay clear of 0b10 Research branches 4742 | -10/Exiles | Met EX-DEC 4850 | -10/Exiles | Discovered new exit (range 14) 5350 | -10/Exiles | Attacked by the Exiles 5408 | -10/Exiles | Entered Mines 5409 | -9/Mines | Learned location of Storage (-7) 5683 | -9/Mines | Found a damaged Exp. Sensor Array with a note attached 5688 | -9/Mines | Found Prototype Device 5689 | -9/Mines | Identified Exp. Sensor Array 5708 | -9/Mines | Assembled infested the area 6226 | -9/Mines | Met a Derelict shopkeep closing up shop 6236 | -9/Mines | Found Powered Armor 6353 | -9/Mines | Discovered new exit (range 6) 6365 | -9/Mines | Entered Materials 6365 | -8/Materials | Evolved 4 slots: Propulsion x2, Utility x2 6366 | -8/Materials | Identified exit to Factory 6622 | -8/Materials | Garrison activated, responded to threat 6795 | -8/Materials | Met 7R-MNS 6868 | -8/Materials | Identified exit to Garrison 6916 | -8/Materials | Entered Garrison 6966 | -8/Garrison | Triggered checkpoint 7052 | -8/Garrison | Triggered checkpoint 7102 | -8/Garrison | Discovered new exit (range 5) 7212 | -8/Garrison | Triggered checkpoint 7265 | -8/Garrison | Destroyed 8 combat bots 7378 | -8/Garrison | Discovered new exit (range 11) 7480 | -8/Garrison | Triggered checkpoint 7736 | -8/Garrison | Spotted B-75 Beast 7769 | -8/Garrison | Destroyed B-75 Beast 7789 | -8/Garrison | Lost 3 parts (1p1n1w) 7825 | -8/Garrison | Discovered new exit (range 11) 7842 | -8/Garrison | Triggered checkpoint 8172 | -8/Garrison | Triggered checkpoint 8208 | -8/Garrison | Triggered checkpoint 8250 | -8/Garrison | Discovered new exit (range 12) 8278 | -8/Garrison | Triggered checkpoint 8817 | -8/Garrison | Installed Relay Interface Framework 8878 | -8/Garrison | Entered Materials 8995 | -8/Materials | Garrison activated, responded to threat 9045 | -8/Materials | Lost 3 parts (2u1w) 9067 | -8/Materials | Met 7R-MNS 9278 | -8/Materials | First assault squad dispatched 9317 | -8/Materials | Discovered exit to Factory (range 10) 9325 | -8/Materials | Destroyed 8 combat bots 9368 | -8/Materials | Entered Factory 9368 | -7/Factory | Evolved 2 slots: Utility x2 9369 | -7/Factory | Caught up to 7R-MNS 9369 | -7/Factory | Identified exit to Storage 9427 | -7/Factory | Garrison activated, responded to threat 9434 | -7/Factory | Sucked down chute 9434 | -7/Factory | Entered Waste 9443 | -7/Waste | Spotted C-40 Crusher 9444 | -7/Waste | Spotted C-40 Crusher 9449 | -7/Waste | EMP discharged 9453 | -7/Waste | Spotted C-40 Crusher 9453 | -7/Waste | Spotted C-40 Crusher 9465 | -7/Waste | Spotted C-40 Crusher 9466 | -7/Waste | Spotted C-40 Crusher 9473 | -7/Waste | Discovered new exit (range 10) 9475 | -7/Waste | Identified exit to Factory 9476 | -7/Waste | Entered Factory 9480 | -7/Factory | Identified exit to Lower Caves 9541 | -7/Factory | Garrison activated, responded to threat 9639 | -7/Factory | Build established: Hacker-Sprinter 9709 | -7/Factory | Fabricated Cld. VTOL Module (x1) 9805 | -7/Factory | Garrison activated, responded to threat 9875 | -7/Factory | Entered Storage 9876 | -7/Storage | Loaded intel: 14 trap records 9926 | -7/Storage | Assisted by bots powering up and referring to "LRC-V3" 9939 | -7/Storage | Identified exit to Factory 9987 | -7/Storage | Garrison activated, responded to threat 10020 | -7/Storage | Lost 3 allies 10123 | -7/Storage | Met 01-MTF 10156 | -7/Storage | Used back door to open Recycling access 10156 | -7/Storage | Discovered new exit (range 5) 10167 | -7/Storage | Identified exit to Recycling 10169 | -7/Storage | Entered Recycling 10169 | -7/Recycling | Accompanied by 1 ally (01-MTF) 10170 | -7/Recycling | Loaded intel: 6 recycling unit locations 10186 | -7/Recycling | Scanned before Scraplab entrance 10191 | -7/Recycling | Entered Scraplab 10193 | -7/Recycling | Discovered new exit (range 3) 10193 | -7/Recycling | Identified exit to Scraptown 10194 | -7/Recycling | Entered Scraptown 10194 | -7/Scraptown | System corruption cleaned by C-Scrubber 10211 | -7/Scraptown | Turned away by UFD registrar 10211 | -7/Scraptown | Turned away by UFD registrar 10213 | -7/Scraptown | Visited Fellowship of the Rings 10220 | -7/Scraptown | Visited CR-KLE's Repair Center 10225 | -7/Scraptown | Visited Shadow of the Wyrm 10232 | -7/Scraptown | CR-KLE repaired 4 parts 10239 | -7/Scraptown | Visited Red Mages 10252 | -7/Scraptown | Visited Assassins FH 10256 | -7/Scraptown | Visited The Evicted 10261 | -7/Scraptown | Visited Symbiants 10349 | -7/Scraptown | Discovered new exit (range 11) 10411 | -7/Scraptown | Identified exit to Factory 10411 | -7/Scraptown | Entered Factory 10411 | -5/Factory | Evolved 4 slots: Propulsion x1, Utility x3 10426 | -5/Factory | Identified exit to Upper Caves 10426 | -5/Factory | Identified exit to Extension 10442 | -5/Factory | Discovered new exit (range 8) 10443 | -5/Factory | Identified exit to Factory 10503 | -5/Factory | Spotted B-75 Beast 10747 | -5/Factory | Fabricated Adv. Hacking Suite (x1) 10753 | -5/Factory | Entered Upper Caves 10776 | -5/Upper Caves | Found Alien Artifact 10776 | -5/Upper Caves | Identified Core Expander 10776 | -5/Upper Caves | Installed Core Expander, added new Propulsion slot 10820 | -5/Upper Caves | Discovered new exit (range 6) 10821 | -5/Upper Caves | Identified exit to Upper Caves 10821 | -5/Upper Caves | Entered another Upper Caves area 10836 | -5/Upper Caves | Discovered exit to Factory (range 10) 10837 | -5/Upper Caves | Learned Factory terminal intel 10866 | -5/Upper Caves | Learned Factory trap positions 10961 | -5/Upper Caves | Encountered a Warlord checkpoint 10964 | -5/Upper Caves | Discovered new exit (range 15) 10967 | -5/Upper Caves | Identified exit to Zhirov 10967 | -5/Upper Caves | Self-destructed Last Messages --------------- System corrupted: Energy discharge (-23). System corrupted: Matter fused (-10). Acquired derelict log, extracted data. Data stored: Factory trap records. Searching scrap... Found Unknown Slashing Weapon. Found Imp. Medium Treads. Found 43 Matter. Dropped Katana. Acquired Unknown Slashing Weapon. Identified Ripper. Acquired 43 matter. System corrupted: Heat flow error (+287). System corrupted: Component data lost. V1-M4N(M): "We're here to intercept Unaware patrols. Move along before you get yourself shot." EXIT=FOUND System corrupted: Matter fused (-9). EXIT=IDENTIFIED: ZHIROV Map ----- +----------------------------------------------------+ | ?????????????????????????????????????????????? | | ??????????????????????????#########??????????? | | ??????????????????????????# #??????????? | | ??????????????????????????# ####???????? | | ??????????????????????????# ######??? | | ??????????????????????????# #??? | | ??????????????????????????# #??? | | ??????????????????????????# ## ???? | | ??????????????????????????# ##### #???? | | ??????????????????????????####### ###### ##### | | ????????????????????##??????????# ### | | ????????????????????# ?????????# ###### | | ?????????????????????# ?#??????##### #????## | | ??????????????????????# ?????##### #?????# | | ??????????????????????# ?????# ## #?????? | | ??????????????????????# # ????## ?# #?????? | | ??????????????????????# ##### ### ##?#???? | | ??????????????????????# # # ## # #???? | | ??????????????????????## # # ## # #??? | | ??????????????????????# # ##?? | | ???????????????????????# # #?? | | ????????????????????????# # # | | ?????????????????????####### # # | | ???????????????????### # ### ## | | ???????????????????# ## #?## ## | | ???????????????????# @ #### #?# # # | | ????????????????# > #??# #? # | | ????????????????# # ###?? # # | | ????????????????##?# ##??? # # # | | ???????????????????## #??? # ## # | | ???????????????????? #??# ###?? ## | | ???????????????????# ??## # ##????? ?? | | ???????????????????## ???## ? #???????? ? | | ????????????????????# ???? ?# ##?????????? | | ????????????????????# ????? ?? ??????????? | | ????????????????????? ????? ?? ??????????? | | ?????????????????????##????? #???????????????? | | ?????????????????????????????????????????????? | | ?????????????????????????????????????????????? | | ?????????????????????????????????????????????? | | ?????????????????????????????????????????????? | | ?????????????????????????????????????????????? | | ?????????????????????????????????????????????? | | ?????????????????????????????????????????????? | | ?????????????????????????????????????????????? | | ?????????????????????????????????????????????? | | ?????????????????????????????????????????????? | | ?????????????????????????????????????????????? | | ?????????????????????????????????????????????? | | ?????????????????????????????????????????????? | +----------------------------------------------------+ Best States ------------- Heat Dissipation 40 Energy Generation 18 Energy Capacity 290 Matter Stores 300 Matter Capacity 300 Sight Range 16 Robot Scan Range 20 Terrain Scan Density 10 Jamming Range 14 Additional Mass Support 9 Armor Coverage 550 Power Shielding 66 Evasion (%) 76 Targeting Accuracy 5 Core Analysis 6 Recoil Reduction 4 Offensive Hacking 35 Defensive Hacking 10 Item Schematics ----------------- Cld. VTOL Module | -7/Factory | Scanalyzed Adv. Hacking Suite | -5/Factory | Hacked Stasis Canceller | -5/Factory | Hacked Robot Schematics ------------------ None Fabricated ------------ Cld. VTOL Module | x1 | -7/Factory Adv. Hacking Suite | x1 | -5/Factory Alien Tech Used ----------------- Core Expander Achievements -------------- None Challenges ------------ None Game ------ Seed WeightMicrowarpNeutralizer Manual? 0 Play Time 01:25:51 Cumulative 559.0 hours Start 2024.08.11 @ 11:26:00 End 2024.08.11 @ 12:55:29 Sessions 3 Manual Loads 0 Difficulty Rogue Special Mode None Game No. 317 Rogue 317 Adventurer 0 Explorer 0 Win Type - Total 36 Types 22/2/4/3/1/1/1/1/1 Lore% 96 Gallery% 97 Achievement% 98 Wizard Run 0 Options --------- Layout 1 ASCII 0 Keyboard 0 Movement Numpad Keybinds 0 Fullscreen 1 Font 24/Smallcaps Map View 50x35 Zoom Use 0% Tactical HUD 1 Map Filters NONE Filters NONE Steam 1 RUN: 286fb4e9-f131-4fd2-b87c-9ecc1f39e8fe